bitfinex/quotes_BTCUSD_20230405
["timestamp","ask_amount","ask_price","bid_price","bid_amount"]
[1680707332885,0.14189681,27947.0,27940.0,0.35667956]
[1680707333105,0.14189681,27947.0,27940.0,0.35489056]
[1680707333355,0.15263081,27947.0,27940.0,0.35489056]
[1680707334000,0.14189681,27947.0,27940.0,0.35667956]
[1680707334204,0.14189681,27947.0,27940.0,0.39234752]
[1680707334890,0.08313855,27950.0,27940.0,0.39950552]
[1680707335111,0.08313855,27950.0,27941.0,0.35471056]
[1680707335112,1.28802259,27949.0,27941.0,0.35471056]
[1680707335336,0.00018,27950.0,27943.0,0.005367]
[1680707335560,1.28792345,27951.0,27944.0,0.35471056]
[1680707335781,1.28810345,27951.0,27945.0,0.03600776]
[1680707336003,1.28810345,27951.0,27946.0,0.35471056]
[1680707336663,0.034562,27952.0,27946.0,0.35489056]
[1680707336881,0.034562,27952.0,27945.0,0.00018]
[1680707336882,0.17627881,27952.0,27945.0,0.00018]
[1680707337101,0.16554681,27952.0,27946.0,0.35471056]
[1680707337311,0.04149315,27952.0,27946.0,0.35471056]
[1680707337521,0.19412196,27952.0,27946.0,0.35471056]
[1680707337982,1.42985633,27951.0,27945.0,0.00018]
[1680707338188,0.0322,27950.0,27941.0,0.00018]
[1680707338428,0.14189681,27949.0,27942.0,0.35471056]
[1680707338639,0.14189681,27949.0,27942.0,0.35667956]
[1680707338854,0.17047296,27949.0,27942.0,0.35489056]
[1680707339486,0.15973996,27949.0,27942.0,0.35667956]
[1680707339737,0.02383,27952.0,27942.0,0.36025756]
[1680707339922,0.17627881,27952.0,27943.0,0.03602576]
[1680707340172,0.17627881,27952.0,27944.0,0.35649956]
[1680707340393,0.16554681,27952.0,27944.0,0.35667956]
[1680707340619,0.16554681,27952.0,27945.0,0.03962833]
[1680707340840,0.02365,27952.0,27946.0,0.35471056]
[1680707341505,0.034382,27952.0,27946.0,0.35471056]
[1680707341725,0.17627881,27952.0,27946.0,0.35471056]
[1680707342626,0.034382,27952.0,27946.0,0.35471056]
[1680707342869,0.02365,27952.0,27946.0,0.35471056]
[1680707343107,0.02365,27952.0,27946.0,0.39216752]
[1680707343573,0.16554681,27952.0,27946.0,0.39037852]
[1680707343837,0.02365,27952.0,27946.0,0.39216752]
[1680707344067,0.02365,27952.0,27947.0,0.09065355]
[1680707344297,0.02365,27952.0,27948.0,0.055748]
[1680707344536,0.02365,27952.0,27949.0,0.35471056]
[1680707344752,0.02365,27952.0,27950.0,0.057206]
[1680707344990,0.02365,27952.0,27951.0,0.35471056]
[1680707345454,0.02365,27952.0,27950.0,0.00018]
[1680707345674,0.02365,27952.0,27946.0,0.001789]
[1680707345886,0.14189681,27951.0,27947.0,0.35649956]
[1680707346134,0.02365,27952.0,27947.0,0.35649956]
[1680707346135,0.02365,27952.0,27947.0,0.35667956]
[1680707346356,0.02365,27952.0,27947.0,0.35471056]
[1680707346577,0.02365,27952.0,27947.0,0.35489056]
[1680707346798,0.02365,27952.0,27948.0,0.056226]
[1680707347017,0.02365,27952.0,27949.0,0.35471056]
[1680707347446,0.02365,27952.0,27949.0,0.35649856]
[1680707348087,0.02365,27952.0,27950.0,0.055072]
[1680707348322,0.02365,27952.0,27951.0,0.35649856]
[1680707348542,0.02365,27952.0,27951.0,0.45076132]
[1680707349223,0.02365,27952.0,27951.0,0.45064432]
[1680707352714,0.02365,27952.0,27951.0,0.53656432]
[1680707354227,0.02365,27952.0,27951.0,0.49504956]
[1680707354443,0.16054681,27952.0,27951.0,0.40734156]
[1680707354673,0.01865,27952.0,27951.0,0.40734156]
[1680707355740,0.01865,27952.0,27948.0,0.0861]
[1680707355741,0.17127881,27952.0,27948.0,0.0861]
[1680707355969,0.17127881,27952.0,27943.0,0.08592]
[1680707355970,0.14189681,27951.0,27943.0,0.08592]
[1680707356201,0.15262981,27951.0,27944.0,0.35471056]
[1680707356407,0.14207681,27951.0,27944.0,0.35471056]
[1680707356626,0.14207681,27951.0,27944.0,0.16355664]
[1680707357053,0.14207681,27951.0,27944.0,0.16176764]
[1680707357269,0.15280981,27951.0,27944.0,0.16176764]
[1680707357729,0.15280981,27951.0,27942.0,0.101789]
[1680707357939,0.15280981,27951.0,27943.0,0.35471056]
[1680707358368,0.010733,27950.0,27943.0,0.35471056]
[1680707358589,0.14189681,27949.0,27943.0,0.35471056]
[1680707358831,0.14189681,27949.0,27944.0,0.001789]
[1680707359047,0.00018,27950.0,27944.0,0.35471056]
[1680707359255,0.00018,27951.0,27945.0,0.13547106]
[1680707359678,0.00018,27951.0,27946.0,0.35471056]
[1680707359906,0.00018,27951.0,27946.0,0.35649956]
[1680707360119,0.01383,27952.0,27947.0,0.1]
[1680707360313,0.01383,27952.0,27948.0,0.35471056]
[1680707360549,0.01383,27952.0,27948.0,0.35489056]
[1680707360762,0.01383,27952.0,27949.0,0.053264]
[1680707361430,0.01383,27952.0,27949.0,0.00018]
[1680707361855,0.01383,27952.0,27949.0,0.001968]
[1680707362509,0.01383,27952.0,27950.0,0.35471056]
[1680707362740,0.01383,27952.0,27951.0,0.10549586]
[1680707362954,0.01383,27952.0,27951.0,0.46038642]
[1680707363171,0.01383,27952.0,27951.0,0.54630642]
[1680707363605,0.01383,27952.0,27951.0,0.46038642]
[1680707363823,0.02365,27953.0,27951.0,0.46020642]
[1680707364072,0.02365,27953.0,27952.0,0.5630452]
[1680707364281,0.02365,27953.0,27952.0,0.5648332]
[1680707365625,0.02365,27953.0,27952.0,0.241412]
[1680707365832,0.02365,27953.0,27952.0,0.239624]
[1680707366038,0.02365,27953.0,27952.0,0.241412]
[1680707366251,0.02365,27953.0,27952.0,0.239624]
[1680707367304,0.02365,27953.0,27952.0,0.241412]
[1680707367515,0.02365,27953.0,27952.0,0.2637832]
[1680707368159,0.02365,27953.0,27952.0,0.2655712]
[1680707369231,0.02365,27953.0,27952.0,0.2637832]
[1680707369447,0.02365,27953.0,27952.0,0.2653062]
[1680707369656,0.02365,27953.0,27952.0,0.62180476]
[1680707369873,0.02365,27953.0,27952.0,0.62538176]
[1680707370937,0.02365,27953.0,27952.0,0.53946176]
[1680707371148,0.02365,27953.0,27952.0,0.62538176]
[1680707372069,0.02365,27953.0,27952.0,0.63253676]
[1680707372271,0.02365,27955.0,27952.0,0.63253676]
[1680707372482,0.02365,27955.0,27953.0,0.49085224]
[1680707372688,0.02365,27955.0,27954.0,0.061137]
[1680707372884,0.02365,27955.0,27954.0,0.50176756]
[1680707373348,0.02365,27969.0,27955.0,0.12365]
[1680707373556,0.016585,27963.0,27961.0,0.35471056]
[1680707373765,0.016585,27963.0,27962.0,0.057287]
[1680707373973,0.016585,27963.0,27962.0,0.41199756]
[1680707374188,0.016585,27963.0,27962.0,0.49785756]
[1680707374399,0.016585,27963.0,27962.0,0.54766132]
[1680707374816,0.016585,27963.0,27962.0,0.54784132]
[1680707375029,0.016585,27963.0,27962.0,0.54426532]
[1680707375237,0.016585,27963.0,27962.0,0.40860156]
[1680707375459,0.016585,27963.0,27962.0,0.49446156]
[1680707375674,0.016585,27963.0,27962.0,0.40681356]
[1680707375887,0.016585,27963.0,27962.0,0.35489056]
[1680707376522,0.016585,27963.0,27962.0,0.40840756]
[1680707376784,0.016585,27963.0,27962.0,0.45819192]
[1680707376982,0.016585,27963.0,27962.0,0.46176792]
[1680707377403,0.016585,27963.0,27962.0,0.41198356]
[1680707377615,0.016585,27963.0,27962.0,0.40840756]
[1680707379792,0.016585,27963.0,27962.0,0.40661956]
[1680707380732,0.016585,27963.0,27962.0,0.49247956]
[1680707381556,5e-06,27963.0,27962.0,0.49229956]
[1680707381758,5e-06,27963.0,27962.0,0.45568752]
[1680707382395,5e-06,27963.0,27962.0,0.75747552]
[1680707383021,5e-06,27963.0,27962.0,0.75568752]
[1680707383649,5e-06,27963.0,27962.0,0.84154752]
[1680707383853,0.43315,27973.0,27963.0,0.1]
[1680707383854,0.396461,27973.0,27963.0,0.1]
[1680707384046,0.010726,27969.0,27964.0,0.35471056]
[1680707384258,0.010726,27969.0,27964.0,0.45232557]
[1680707384527,0.02145,27971.0,27964.0,0.45232557]
[1680707384728,0.396461,27973.0,27964.0,0.45232557]
[1680707384867,0.53835781,27973.0,27964.0,0.45411257]
[1680707385062,0.53835781,27973.0,27965.0,0.05541126]
[1680707385263,0.53835781,27973.0,27966.0,0.35471056]
[1680707385464,0.53835781,27973.0,27966.0,0.35489056]
[1680707386681,0.53835781,27973.0,27966.0,0.00018]
[1680707386894,0.53835781,27973.0,27964.0,0.00018]
[1680707387158,0.14189681,27972.0,27965.0,0.0123233]
[1680707387366,0.14189681,27972.0,27965.0,0.0125033]
[1680707388234,0.14189681,27972.0,27966.0,0.35471056]
[1680707388465,0.14189681,27972.0,27966.0,0.03904589]
[1680707388668,0.396461,27973.0,27966.0,0.35649756]
[1680707388872,0.396461,27973.0,27966.0,0.35667756]
[1680707389087,0.53835781,27973.0,27966.0,0.35667756]
[1680707389302,0.53835781,27973.0,27966.0,0.39270282]
[1680707389737,0.14189681,27972.0,27966.0,0.00018]
[1680707389956,0.14189681,27972.0,27966.0,0.001787]
[1680707389957,0.35471056,27971.0,27966.0,0.001787]
[1680707390188,0.49660737,27971.0,27963.0,0.003756]
[1680707390410,0.14189681,27970.0,27966.0,0.001787]
[1680707390623,0.396641,27973.0,27966.0,0.001787]
[1680707390624,0.14207681,27972.0,27966.0,0.001787]
[1680707390871,0.14189681,27972.0,27966.0,0.35649756]
[1680707391081,0.15262181,27972.0,27965.0,0.00018]
[1680707391289,0.14189681,27972.0,27966.0,0.001787]
[1680707391498,0.14189681,27972.0,27963.0,0.003576]
[1680707391499,0.14189681,27972.0,27965.0,0.001787]
[1680707391708,0.14189681,27971.0,27964.0,0.0207496]
[1680707391927,0.14189681,27971.0,27965.0,0.35471056]
[1680707392203,0.35471056,27970.0,27965.0,0.00018]
[1680707392411,0.35471056,27970.0,27960.0,0.00018]
[1680707392412,0.010726,27969.0,27960.0,0.00018]
[1680707392629,0.19219597,27969.0,27960.0,0.00018]
[1680707392838,0.49660737,27968.0,27959.0,0.10018]
[1680707393048,0.010727,27966.0,27959.0,0.10018]
[1680707393263,0.010727,27966.0,27959.0,0.1]
[1680707393527,0.49660737,27965.0,27957.0,0.00018]
[1680707393739,0.49660737,27965.0,27956.0,1.9868]
[1680707393740,0.0085,27964.0,27956.0,0.00018]
[1680707393948,0.49660737,27963.0,27954.0,0.00018]
[1680707394160,0.49660737,27963.0,27954.0,0.001968]
[1680707394586,0.49660737,27963.0,27954.0,0.001788]
[1680707394813,0.0085,27962.0,27954.0,0.001788]
[1680707395010,0.49660737,27961.0,27954.0,0.001788]
[1680707396072,0.49607112,27961.0,27954.0,0.001788]
[1680707396486,0.00018,27964.0,27954.0,0.35649856]
[1680707396695,0.49660737,27964.0,27954.0,0.35667856]
[1680707396925,0.49660737,27964.0,27955.0,0.03674096]
[1680707397148,0.3,27963.0,27957.0,0.005364]
[1680707397827,0.3,27963.0,27958.0,0.35471056]
[1680707398039,0.00018,27966.0,27959.0,0.0304]
[1680707398251,0.1358,27967.0,27960.0,0.35471056]
[1680707398487,0.1358,27967.0,27962.0,0.012516]
[1680707398692,0.1365,27970.0,27963.0,0.35471056]
[1680707398900,0.1364,27972.0,27965.0,0.012513]
[1680707399128,0.1364,27972.0,27965.0,0.36722356]
[1680707399348,0.1364,27972.0,27966.0,0.04039642]
[1680707399565,0.1364,27972.0,27967.0,0.005362]
[1680707400908,0.1359,27972.0,27967.0,0.005362]
[1680707401559,0.1355,27974.0,27967.0,0.005362]
[1680707401774,0.37836056,27975.0,27967.0,0.04210236]
[1680707401989,0.37836056,27975.0,27967.0,0.04228236]
[1680707401990,0.52025737,27975.0,27967.0,0.04228236]
[1680707402660,1.28679206,27974.0,27967.0,0.04228236]
[1680707402868,0.14189681,27974.0,27967.0,0.04228236]
[1680707404201,0.14189681,27973.0,27967.0,0.005542]
[1680707404421,0.14189681,27973.0,27967.0,0.005362]
[1680707405273,0.1364,27974.0,27967.0,0.005362]
[1680707405485,0.27829681,27974.0,27967.0,0.005362]
[1680707408363,0.14189681,27973.0,27967.0,0.005362]
[1680707408569,0.1355,27972.0,27967.0,0.005362]
[1680707408783,0.27739681,27972.0,27967.0,0.001787]
[1680707409024,0.1359,27969.0,27965.0,0.00018]
[1680707409234,0.1355,27966.0,27963.0,0.001968]
[1680707409454,0.14189681,27965.0,27964.0,0.001788]
[1680707409672,0.1355,27966.0,27964.0,0.001788]
[1680707409888,0.43618,27971.0,27964.0,0.001788]
[1680707410100,0.13598,27974.0,27965.0,0.35471056]
[1680707410339,0.49051056,27974.0,27967.0,0.012513]
[1680707410555,0.1358,27974.0,27967.0,0.012513]
[1680707411206,0.02365,27975.0,27968.0,0.35471056]
[1680707411422,0.02365,27975.0,27970.0,0.012512]
[1680707411649,0.02365,27975.0,27971.0,0.050163]
[1680707411859,0.02365,27975.0,27968.0,0.00840929]
[1680707412077,0.16554681,27975.0,27971.0,0.001787]
[1680707412288,0.1359,27974.0,27970.0,0.00018]
[1680707412499,0.1359,27974.0,27969.0,0.001787]
[1680707412500,0.1359,27974.0,27969.0,0.00018]
[1680707412711,0.27779681,27974.0,27969.0,0.00018]
[1680707412958,0.1364,27972.0,27969.0,0.00018]
[1680707413177,0.14189681,27972.0,27967.0,0.001967]
[1680707413390,0.1364,27974.0,27968.0,0.001787]
[1680707413601,0.136,27972.0,27967.0,0.001787]
[1680707413812,0.63260737,27972.0,27967.0,0.001967]
[1680707414252,0.49071056,27972.0,27967.0,0.001967]
[1680707414458,0.49071056,27972.0,27967.0,0.001787]
[1680707415325,0.1359,27974.0,27967.0,0.008938]
[1680707415549,0.35471056,27973.0,27967.0,0.001787]
[1680707415759,0.136,27972.0,27967.0,0.001787]
[1680707415965,0.14189681,27971.0,27967.0,0.001787]
[1680707416404,0.1358,27970.0,27967.0,0.001787]
[1680707416626,0.1359,27968.0,27965.0,0.00018]
[1680707416873,0.27779681,27968.0,27964.0,0.00018]
[1680707417078,0.63250737,27968.0,27964.0,0.00018]
[1680707417289,0.63250737,27968.0,27964.0,0.001967]
[1680707417496,0.49061056,27968.0,27964.0,0.001967]
[1680707417921,0.35471056,27967.0,27962.0,0.00018]
[1680707418165,0.1358,27965.0,27961.0,0.00018]
[1680707418375,0.010726,27968.0,27961.0,0.00018]
[1680707418376,0.1364,27963.0,27961.0,0.00018]
[1680707418587,0.1364,27963.0,27956.0,0.03545]
[1680707418588,0.63300737,27963.0,27959.0,0.00018]
[1680707418801,0.14189681,27962.0,27959.0,0.00018]
[1680707419027,0.1364,27963.0,27959.0,0.001968]
[1680707419229,0.136,27965.0,27959.0,0.001968]
[1680707419462,0.136,27965.0,27959.0,0.001788]
[1680707419667,0.27789681,27965.0,27959.0,0.001788]
[1680707419873,0.27789681,27965.0,27959.0,0.001968]
[1680707419874,0.63260737,27965.0,27959.0,0.001968]
[1680707420506,0.63260737,27965.0,27959.0,0.00018]
[1680707420729,0.35471056,27964.0,27957.0,0.00018]
[1680707420933,0.14189681,27963.0,27958.0,0.001788]
[1680707421148,0.14189681,27963.0,27959.0,0.001788]
[1680707421149,0.1364,27960.0,27959.0,0.001788]
[1680707421367,0.1355,27962.0,27959.0,0.005364]
[1680707421798,0.1355,27962.0,27958.0,0.00018]
[1680707421799,0.1359,27960.0,27954.0,0.001788]
[1680707422037,0.14189681,27959.0,27955.0,0.001788]
[1680707422254,0.13608,27960.0,27955.0,0.001788]
[1680707422472,0.1359,27960.0,27955.0,0.055007]
[1680707422920,0.27779681,27960.0,27955.0,0.055007]
[1680707423139,0.1358,27956.0,27951.0,0.16280746]
[1680707423412,0.14189681,27955.0,27952.0,0.056351]
[1680707423600,0.14189681,27955.0,27953.0,0.05546]
[1680707423841,0.1355,27954.0,27950.0,0.001788]
[1680707424055,0.1355,27954.0,27948.0,0.25825497]
[1680707424056,0.14189681,27953.0,27951.0,0.003577]
[1680707424266,0.13568,27954.0,27952.0,0.001788]
[1680707424483,0.1355,27954.0,27952.0,0.001788]
[1680707424702,0.00018,27955.0,27952.0,0.001788]
[1680707424908,0.13618,27957.0,27952.0,0.001788]
[1680707425328,0.1358,27955.0,27950.0,0.001788]
[1680707425538,0.27769681,27955.0,27950.0,0.35471056]
[1680707425755,0.14189681,27954.0,27948.0,0.00018]
[1680707425977,0.14189681,27954.0,27948.0,0.04979464]
[1680707425978,0.14189681,27953.0,27948.0,0.04979464]
[1680707426190,0.14207681,27953.0,27948.0,0.04979464]
[1680707426404,0.14207681,27953.0,27948.0,0.001788]
[1680707427062,0.00018,27953.0,27948.0,0.001788]
[1680707427274,0.13568,27955.0,27948.0,0.001788]
[1680707427480,0.27757681,27955.0,27948.0,0.001788]
[1680707428110,0.24749681,27955.0,27948.0,0.001968]
[1680707428776,0.1359,27953.0,27948.0,0.001968]
[1680707428983,0.27779681,27953.0,27948.0,0.001968]
[1680707429932,0.1359,27953.0,27948.0,0.001969]
[1680707430356,0.27779681,27953.0,27948.0,0.001969]
[1680707430778,0.27779681,27953.0,27948.0,0.00018]
[1680707430779,0.14189681,27952.0,27948.0,0.00018]
[1680707431005,0.14189681,27952.0,27947.0,0.00018]
[1680707431214,0.14189681,27952.0,27947.0,0.001969]
[1680707431846,0.35471056,27951.0,27947.0,0.00018]
[1680707433120,0.35471056,27951.0,27946.0,0.028786]
[1680707433338,0.49660737,27951.0,27946.0,0.028786]
[1680707433574,0.0085,27950.0,27946.0,0.028606]
[1680707433804,0.35471056,27949.0,27946.0,0.028606]
[1680707434015,0.36544356,27949.0,27946.0,0.028606]
[1680707434455,0.1358,27948.0,27946.0,0.028606]
[1680707434679,0.36321056,27947.0,27946.0,0.028606]
[1680707435760,0.00018,27949.0,27946.0,0.028606]
[1680707435972,0.35471056,27948.0,27946.0,0.028606]
[1680707438200,0.0085,27950.0,27946.0,0.028606]
[1680707438419,0.00018,27953.0,27946.0,0.39011616]
[1680707438635,0.00018,27956.0,27947.0,0.052959]
[1680707438846,0.35471056,27955.0,27949.0,0.001788]
[1680707439694,0.50733837,27955.0,27946.0,0.028786]
[1680707439911,0.14189681,27954.0,27946.0,0.028606]
[1680707440125,0.36544256,27953.0,27946.0,0.028606]
[1680707440335,0.14189681,27952.0,27946.0,0.028606]
[1680707440544,0.49660737,27952.0,27946.0,0.028606]
[1680707440756,0.35471056,27951.0,27946.0,0.028606]
[1680707440965,0.50734037,27951.0,27946.0,0.028606]
[1680707442124,0.36544356,27951.0,27946.0,0.028606]
[1680707442799,0.0085,27950.0,27946.0,0.028606]
[1680707442993,0.36544356,27949.0,27946.0,6e-05]
[1680707443205,0.36544356,27949.0,27944.0,0.0215]
[1680707443427,0.50734037,27949.0,27944.0,0.0215]
[1680707443840,0.36544356,27949.0,27944.0,0.0215]
[1680707444050,0.50734037,27949.0,27944.0,0.0215]
[1680707444257,0.36544356,27949.0,27944.0,0.0215]
[1680707444704,0.35471056,27949.0,27944.0,0.0215]
[1680707444921,0.49660737,27949.0,27944.0,0.0215]
[1680707445127,0.63250737,27949.0,27944.0,0.0215]
[1680707445340,0.64324037,27949.0,27944.0,0.0215]
[1680707445559,0.49067056,27949.0,27944.0,0.0215]
[1680707445790,0.35471056,27949.0,27940.0,0.07811493]
[1680707446008,0.35471056,27949.0,27942.0,0.001789]
[1680707446009,0.14189681,27948.0,27942.0,0.001789]
[1680707446227,0.49678737,27948.0,27942.0,0.056211]
[1680707446345,0.49678737,27948.0,27942.0,0.07223488]
[1680707446574,0.00018,27948.0,27943.0,0.052673]
[1680707446780,0.00018,27950.0,27944.0,0.005367]
[1680707446988,0.146812,27953.0,27945.0,0.050496]
[1680707447198,0.136,27951.0,27942.0,0.003578]
[1680707447406,0.35471056,27950.0,27943.0,0.001789]
[1680707447617,0.35489056,27950.0,27943.0,0.001789]
[1680707449102,0.14189681,27949.0,27943.0,0.001789]
[1680707449309,0.36321056,27948.0,27943.0,0.001789]
[1680707449510,0.50528737,27948.0,27943.0,0.003789]
[1680707449720,0.35489056,27948.0,27943.0,0.003789]
[1680707450736,0.35489056,27948.0,27943.0,0.001789]
[1680707450737,0.49678737,27948.0,27943.0,0.001789]
[1680707450991,0.35489056,27948.0,27943.0,0.003789]
[1680707451829,0.35489056,27948.0,27943.0,0.001789]
[1680707452389,0.37289056,27948.0,27943.0,0.003789]
[1680707452972,0.01818,27948.0,27943.0,0.058883]
[1680707453178,0.018,27948.0,27943.0,0.144803]
[1680707453386,0.018,27948.0,27944.0,0.054312]
[1680707453535,0.018,27948.0,27945.0,0.001789]
[1680707453733,0.35471056,27947.0,27944.0,0.001789]
[1680707453951,0.35489056,27947.0,27944.0,0.005367]
[1680707454606,0.35489056,27947.0,27944.0,0.001789]
[1680707455255,0.37289056,27947.0,27944.0,0.003789]
[1680707455484,0.37289056,27947.0,27944.0,0.002]
[1680707456937,0.37289056,27947.0,27944.0,0.003789]
[1680707460333,0.01818,27947.0,27944.0,0.003789]
[1680707460544,0.01818,27947.0,27944.0,0.0673987]
[1680707460545,0.018,27947.0,27944.0,0.0673987]
[1680707460743,0.018,27947.0,27945.0,0.053683]
[1680707460971,0.018,27947.0,27946.0,0.005367]
[1680707461194,0.018,27947.0,27946.0,0.0587]
[1680707461406,0.51460737,27947.0,27946.0,0.005367]
[1680707461653,0.51460737,27947.0,27944.0,0.002]
[1680707461654,0.46902456,27947.0,27944.0,0.002]
[1680707461888,0.0846,27945.0,27944.0,0.002]
[1680707462100,0.44781056,27945.0,27939.0,0.0215]
[1680707462313,0.50510737,27944.0,27939.0,0.0215]
[1680707462529,0.50510737,27944.0,27940.0,0.001789]
[1680707462733,0.50528737,27944.0,27939.0,0.0215]
[1680707462939,0.50528737,27944.0,27941.0,0.001789]
[1680707463163,0.36339056,27944.0,27937.0,0.04237257]
[1680707463369,0.36339056,27944.0,27940.0,0.001789]
[1680707463370,0.14189681,27943.0,27940.0,0.001789]
[1680707463579,0.14189681,27943.0,27938.0,0.08592]
[1680707463580,0.35471056,27942.0,27939.0,0.001789]
[1680707463785,0.35489056,27942.0,27938.0,0.08592]
[1680707463990,0.35489056,27942.0,27938.0,0.12758871]
[1680707463991,0.49678737,27942.0,27938.0,0.12758871]
[1680707464196,0.35489056,27942.0,27938.0,0.091288]
[1680707464623,0.35489056,27942.0,27939.0,0.052325]
[1680707464851,0.35489056,27942.0,27940.0,0.001789]
[1680707465467,0.38089056,27942.0,27940.0,0.001789]
[1680707465682,0.35489056,27942.0,27940.0,0.001789]
[1680707466103,0.02718,27942.0,27940.0,0.001789]
[1680707466304,0.027,27942.0,27940.0,0.055116]
[1680707466507,0.027,27942.0,27940.0,0.001789]
[1680707466720,0.03055,27942.0,27939.0,0.001789]
[1680707467113,0.38526056,27942.0,27938.0,0.044749]
[1680707467363,0.38544056,27942.0,27940.0,0.005368]
[1680707467565,0.38189056,27942.0,27938.0,0.04296]
[1680707467779,0.38189056,27942.0,27939.0,0.052518]
[1680707467780,0.37671056,27942.0,27939.0,0.052518]
[1680707468022,0.35471056,27941.0,27938.0,0.00018]
[1680707468238,0.35489056,27941.0,27940.0,0.001789]
[1680707468456,0.35489056,27941.0,27939.0,0.001789]
[1680707468694,0.35489056,27941.0,27937.0,0.003579]
[1680707468908,0.35489056,27941.0,27937.0,0.001789]
[1680707469118,0.35489056,27941.0,27938.0,0.001]
[1680707469371,0.35489056,27941.0,27938.0,0.001789]
[1680707469598,0.22729681,27940.0,27939.0,0.001]
[1680707469817,0.22729681,27940.0,27936.0,6e-05]
[1680707469818,0.53331056,27940.0,27936.0,6e-05]
[1680707470039,0.53331056,27940.0,27935.0,0.00012]
[1680707470040,0.0854,27937.0,27933.0,0.0215]
[1680707470252,0.0854,27935.0,27933.0,0.0215]
[1680707470466,0.22729681,27935.0,27933.0,0.0215]
[1680707470690,0.0854,27935.0,27933.0,0.0215]
[1680707471340,0.44011056,27935.0,27933.0,0.0215]
[1680707471551,0.66740737,27934.0,27931.0,6e-05]
[1680707471763,0.66740737,27934.0,27928.0,0.010842]
[1680707471764,0.60951056,27932.0,27928.0,0.010842]
[1680707471985,0.282576,27933.0,27927.0,0.017447]
[1680707471986,0.00018,27933.0,27927.0,0.017447]
[1680707472216,0.36797211,27940.0,27929.0,0.35471056]
[1680707472217,0.00018,27937.0,27929.0,0.35471056]
[1680707472414,0.027,27935.0,27931.0,0.09067]
[1680707472627,0.027,27935.0,27932.0,0.42150246]
[1680707472849,0.027,27935.0,27934.0,0.1]
[1680707473064,0.021471,27944.0,27934.0,0.152894]
[1680707473325,0.36544656,27943.0,27935.0,0.0259374]
[1680707473543,0.36544656,27943.0,27935.0,0.0279064]
[1680707473988,0.35471056,27941.0,27935.0,0.00018]
[1680707474201,0.35471056,27941.0,27934.0,0.00018]
[1680707474202,0.59194437,27941.0,27934.0,0.00018]
[1680707474420,0.14189681,27940.0,27933.0,0.00018]
[1680707474901,0.49660737,27940.0,27933.0,0.00018]
[1680707475330,0.35471056,27939.0,27933.0,0.00018]
[1680707475548,0.22649681,27938.0,27933.0,0.00018]
[1680707475758,0.22649681,27938.0,27929.0,0.02148]
[1680707475759,0.58120737,27938.0,27931.0,0.00018]
[1680707475974,0.58120737,27938.0,27930.0,0.00018]
[1680707475975,0.35471056,27937.0,27930.0,0.00018]
[1680707476198,0.14189681,27936.0,27930.0,0.00018]
[1680707476417,0.35471056,27935.0,27930.0,0.00018]
[1680707476632,0.49660737,27935.0,27930.0,0.00018]
[1680707477054,0.49660737,27935.0,27930.0,0.00185]
[1680707477278,0.35471056,27935.0,27930.0,0.00197]
[1680707478571,0.38171056,27935.0,27930.0,0.00197]
[1680707478789,0.49660737,27935.0,27930.0,0.00018]
[1680707478994,0.0846,27933.0,27930.0,0.00018]
[1680707479209,0.35471056,27933.0,27930.0,0.00018]
[1680707479426,0.36321056,27932.0,27930.0,0.00018]
[1680707479650,0.0846,27931.0,27929.0,0.00018]
[1680707479926,0.35471056,27930.0,27929.0,0.00018]
[1680707480178,0.36321056,27930.0,27929.0,0.00018]
[1680707480409,0.36321056,27930.0,27928.0,0.00018]
[1680707480624,0.36321056,27930.0,27928.0,0.00197]
[1680707480836,0.36321056,27930.0,27928.0,0.00018]
[1680707481280,0.36321056,27930.0,27927.0,0.017627]
[1680707481281,0.44861056,27930.0,27927.0,0.017627]
[1680707481487,0.47561056,27930.0,27927.0,0.017627]
[1680707481700,0.44861056,27930.0,27927.0,0.017627]
[1680707481913,0.0854,27928.0,27927.0,0.017447]
[1680707482123,0.44861056,27928.0,27927.0,0.017627]
[1680707482330,0.36321056,27928.0,27927.0,0.017627]
[1680707482548,0.35471056,27928.0,27927.0,0.017627]
[1680707482766,0.027,27930.0,27927.0,0.026398]
[1680707482974,1.1,27943.0,27927.0,0.026398]
[1680707482975,0.00018,27938.0,27928.0,0.056639]
[1680707483200,0.35471056,27937.0,27931.0,0.01253]
[1680707483415,0.35471056,27937.0,27931.0,0.00179]
[1680707483635,0.49151056,27936.0,27930.0,0.00018]
[1680707483847,0.64414537,27936.0,27929.0,0.00018]
[1680707484087,0.63340737,27936.0,27929.0,0.00197]
[1680707484315,0.63340737,27936.0,27929.0,0.00179]
[1680707484522,0.027,27930.0,27929.0,0.00179]
[1680707484730,0.63340737,27936.0,27929.0,0.00179]
[1680707484972,0.0085,27935.0,27929.0,0.00179]
[1680707485193,0.35471056,27934.0,27929.0,0.00179]
[1680707485405,0.024,27930.0,27929.0,0.00179]
[1680707485617,0.0085,27933.0,27929.0,0.00179]
[1680707485830,0.35471056,27932.0,27929.0,0.00179]
[1680707486042,0.35471056,27932.0,27929.0,0.00197]
[1680707487327,0.024,27930.0,27929.0,0.00197]
[1680707487588,0.35471056,27932.0,27929.0,0.00197]
[1680707487799,0.37871056,27932.0,27929.0,0.052925]
[1680707488026,0.37871056,27932.0,27929.0,0.00018]
[1680707488457,0.49660737,27932.0,27929.0,0.00018]
[1680707488670,0.0085,27931.0,27929.0,0.00018]
[1680707488892,0.35471056,27930.0,27928.0,0.00018]
[1680707489532,0.027,27932.0,27929.0,0.35471056]
[1680707489749,0.027,27932.0,27930.0,0.201882]
[1680707489969,0.027,27932.0,27931.0,0.054191]
[1680707490216,0.027,27932.0,27931.0,0.056161]
[1680707490433,0.04425465,27942.0,27931.0,0.077641]
[1680707490658,0.49660737,27942.0,27932.0,0.40956056]
[1680707490869,0.49660737,27942.0,27935.0,0.001789]
[1680707491080,0.35471056,27942.0,27935.0,0.001969]
[1680707491286,0.35471056,27941.0,27935.0,0.001969]
[1680707491505,0.35471056,27941.0,27935.0,0.001789]
[1680707492570,0.49660737,27941.0,27935.0,0.001969]
[1680707492852,0.49660737,27941.0,27935.0,0.053516]